bitfinex/quotes_SOLUSD_20230905
["timestamp","ask_amount","ask_price","bid_price","bid_amount"]
[1693884165709,8.149,19.142,19.127,42.69733402]
[1693884165710,27.33,19.14,19.126,46.01]
[1693884165911,8.152,19.136,19.13,6.523]
[1693884166110,8.152,19.136,19.131,55.0]
[1693884166706,8.152,19.136,19.131,61.523]
[1693884167207,8.152,19.136,19.132,1.45468769]
[1693884169906,8.152,19.136,19.131,55.0]
[1693884170089,8.152,19.136,19.131,1.45690026]
[1693884170290,8.152,19.136,19.131,21.45690026]
[1693884170497,8.152,19.136,19.131,20.0]
[1693884170898,8.152,19.136,19.132,1.33892967]
[1693884172315,8.152,19.136,19.131,1.94895892]
[1693884172511,8.152,19.136,19.131,21.94895892]
[1693884173813,8.152,19.136,19.131,20.0]
[1693884175321,8.152,19.136,19.129,20.0]
[1693884175520,65.635,19.136,19.125,6.525]
[1693884175713,27.33,19.13,19.126,2.16591869]
[1693884175904,8.154,19.13,19.126,2.16591869]
[1693884176317,8.154,19.13,19.126,8.69091869]
[1693884176521,8.154,19.13,19.126,6.525]
[1693884177304,8.154,19.13,19.126,2.16591869]
[1693884177912,8.154,19.13,19.125,2.16591869]
[1693884178225,8.154,19.13,19.124,2.24948518]
[1693884178525,8.154,19.13,19.124,57.24948518]
[1693884179024,35.484,19.13,19.124,2.24948518]
[1693884179317,35.484,19.13,19.115,46.035]
[1693884179318,35.484,19.13,19.116,3.79399925]
[1693884179525,35.484,19.13,19.116,23.79399925]
[1693884179916,35.484,19.13,19.119,6.527]
[1693884180220,35.484,19.13,19.12,23.79399925]
[1693884180408,35.484,19.13,19.123,6.526]
[1693884180721,35.484,19.13,19.124,3.79399925]
[1693884181621,35.484,19.13,19.124,10.31899925]
[1693884182326,35.484,19.13,19.124,3.79399925]
[1693884182716,35.484,19.13,19.123,3.79399925]
[1693884182917,35.484,19.13,19.123,10.31899925]
[1693884183225,131.303,19.14,19.123,10.31899925]
[1693884183439,20.0,19.139,19.127,6.524]
[1693884183610,8.151,19.139,19.131,27.598]
[1693884184008,8.151,19.139,19.133,6.522]
[1693884184214,8.151,19.139,19.134,55.0]
[1693884184421,8.151,19.139,19.133,6.522]
[1693884184629,199.50129855,19.138,19.134,55.0]
[1693884184832,8.151,19.138,19.134,55.0]
[1693884185212,8.151,19.138,19.133,55.0]
[1693884185920,8.151,19.138,19.133,61.522]
[1693884186920,8.15,19.139,19.133,61.522]
[1693884187224,8.151,19.138,19.133,61.522]
[1693884188418,8.151,19.138,19.133,55.0]
[1693884193014,8.151,19.138,19.132,55.0]
[1693884194120,8.151,19.138,19.131,55.0]
[1693884195327,8.151,19.138,19.131,61.523]
[1693884196333,8.151,19.138,19.129,6.524]
[1693884196624,8.151,19.138,19.13,20.0]
[1693884196821,8.151,19.138,19.13,26.523]
[1693884198123,8.151,19.138,19.13,20.0]
[1693884198622,8.151,19.138,19.13,26.523]
[1693884199029,8.151,19.138,19.13,20.0]
[1693884199630,8.151,19.138,19.13,26.523]
[1693884199838,8.151,19.138,19.13,20.0]
[1693884200020,8.151,19.138,19.122,46.018]
[1693884200221,27.33,19.13,19.123,24.87799925]
[1693884200422,8.155,19.129,19.125,6.525]
[1693884200621,8.155,19.129,19.126,3.79399925]
[1693884201523,8.155,19.129,19.125,6.525]
[1693884202320,27.33,19.13,19.12,3.79399925]
[1693884202516,8.155,19.129,19.123,6.525]
[1693884202719,8.155,19.129,19.122,21.085]
[1693884202720,8.155,19.129,19.125,3.79399925]
[1693884203420,8.155,19.129,19.124,3.79399925]
[1693884204129,8.155,19.129,19.124,6.525]
[1693884204927,27.33,19.13,19.125,55.0]
[1693884205125,8.154,19.132,19.126,10.31799925]
[1693884205326,8.154,19.132,19.126,6.524]
[1693884206020,8.153,19.133,19.126,6.524]
[1693884208333,8.153,19.133,19.125,55.0]
[1693884208521,8.153,19.133,19.126,1.63338896]
[1693884208832,8.153,19.133,19.123,6.526]
[1693884209135,8.153,19.133,19.124,3.79399925]
[1693884209318,8.153,19.133,19.124,10.31899925]
[1693884209740,8.153,19.133,19.124,3.79399925]
[1693884210637,8.153,19.133,19.124,10.31899925]
[1693884211238,8.153,19.133,19.124,6.525]
[1693884212841,8.153,19.133,19.125,3.79399925]
[1693884213344,8.153,19.133,19.125,6.525]
[1693884213639,8.153,19.133,19.126,10.31799925]
[1693884213939,8.153,19.133,19.12,46.024]
[1693884214141,8.153,19.133,19.126,1.67206094]
[1693884214343,8.153,19.133,19.125,6.525]
[1693884217541,8.153,19.133,19.126,1.67206094]
[1693884218449,8.153,19.133,19.126,6.524]
[1693884218650,8.153,19.133,19.127,58.65371617]
[1693884218835,8.153,19.133,19.128,6.524]
[1693884222451,8.153,19.133,19.127,6.524]
[1693884223442,8.153,19.133,19.128,56.46246078]
[1693884223648,8.153,19.133,19.128,55.0]
[1693884224852,8.153,19.133,19.127,55.0]
[1693884225056,8.153,19.133,19.127,61.524]
[1693884226054,8.153,19.133,19.128,1.55607753]
[1693884226255,8.153,19.133,19.128,8.08007753]
[1693884226449,8.153,19.133,19.129,55.0]
[1693884226656,8.153,19.133,19.129,61.524]
[1693884226852,8.153,19.133,19.129,55.0]
[1693884228959,8.153,19.133,19.128,55.0]
[1693884229158,8.153,19.133,19.126,6.525]
[1693884230660,8.153,19.133,19.127,56.63878693]
[1693884230863,8.153,19.133,19.127,63.16278693]
[1693884231160,8.153,19.133,19.127,56.63878693]
[1693884231362,34.494,19.133,19.127,1.63878693]
[1693884231661,34.494,19.133,19.124,3.79399925]
[1693884231861,8.155,19.129,19.124,3.79399925]
[1693884232254,8.155,19.129,19.124,6.525]
[1693884232456,8.155,19.129,19.125,3.79399925]
[1693884232665,8.155,19.129,19.124,6.525]
[1693884232857,34.502,19.129,19.121,3.79399925]
[1693884233064,34.502,19.129,19.12,3.79399925]
[1693884233258,8.155,19.129,19.121,6.526]
[1693884233450,8.155,19.129,19.122,3.79399925]
[1693884233650,8.155,19.129,19.123,6.526]
[1693884234167,8.155,19.129,19.124,3.79399925]
[1693884234362,8.155,19.129,19.122,3.79399925]
[1693884234864,8.155,19.129,19.121,78.79399925]
[1693884235768,8.155,19.129,19.121,23.79399925]
[1693884237754,8.155,19.129,19.115,6.528]
[1693884237951,8.155,19.129,19.116,3.79399925]
[1693884238158,93.8325,19.128,19.116,10.32199925]
[1693884238466,34.51,19.125,19.116,10.32199925]
[1693884238763,34.51,19.125,19.117,3.79399925]
[1693884239369,34.51,19.125,19.112,3.79399925]
[1693884239568,34.51,19.125,19.112,58.79399925]
[1693884240355,34.51,19.125,19.114,6.529]
[1693884240556,34.51,19.125,19.115,58.79399925]
[1693884240870,34.51,19.125,19.115,65.32199925]
[1693884241168,8.157,19.125,19.115,65.32199925]
[1693884243168,8.157,19.125,19.115,58.79399925]
[1693884243373,27.33,19.12,19.115,3.79399925]
[1693884243566,27.33,19.12,19.113,3.79399925]
[1693884243567,8.159,19.119,19.113,3.79399925]
[1693884243768,8.159,19.119,19.108,21.1]
[1693884243769,8.159,19.119,19.11,6.53]
[1693884244072,8.159,19.119,19.112,6.529]
[1693884244271,8.159,19.119,19.113,3.79399925]
[1693884244568,8.159,19.119,19.111,3.79399925]
[1693884245368,8.159,19.119,19.111,10.32399925]
[1693884246477,8.159,19.119,19.111,3.79399925]
[1693884247675,8.159,19.119,19.111,10.32399925]
[1693884249181,8.159,19.119,19.111,3.79399925]
[1693884249470,8.159,19.119,19.105,3.79399925]
[1693884250068,8.159,19.119,19.107,6.531]
[1693884250268,8.159,19.119,19.108,3.79399925]
[1693884250577,8.159,19.119,19.108,10.32499925]
[1693884250774,8.159,19.119,19.108,6.531]
[1693884250973,8.159,19.119,19.106,3.79399925]
[1693884251178,8.159,19.119,19.107,6.531]
[1693884251375,8.159,19.119,19.108,3.79399925]
[1693884252867,8.159,19.119,19.108,65.32499925]
[1693884253176,27.33,19.12,19.108,111.37899925]
[1693884253483,35.489,19.12,19.109,20.0]
[1693884253677,35.489,19.12,19.112,6.529]
[1693884253883,35.489,19.12,19.113,3.79399925]
[1693884254195,53.4321284,19.13,19.113,10.32299925]
[1693884254366,8.156,19.126,19.118,27.616]
[1693884254571,8.156,19.127,19.118,27.616]
[1693884255472,8.156,19.127,19.118,6.527]
[1693884256492,8.156,19.127,19.114,55.0]
[1693884256677,8.156,19.127,19.115,1.57936367]
[1693884256879,0.63350089,19.126,19.115,6.528]
[1693884257177,34.513,19.123,19.115,6.528]
[1693884257685,8.157,19.123,19.115,6.528]
[1693884261386,8.157,19.123,19.114,55.0]
[1693884261591,8.157,19.123,19.114,61.529]
[1693884262593,27.33,19.12,19.114,61.529]
[1693884262790,8.159,19.119,19.114,55.0]
[1693884262992,8.159,19.119,19.114,61.528]
[1693884263292,57.518,19.125,19.114,61.528]
[1693884263293,8.159,19.12,19.114,61.528]
[1693884269697,8.158,19.121,19.115,1.38057475]
[1693884269999,8.158,19.121,19.116,6.528]
[1693884273381,27.39,19.13,19.116,6.528]
[1693884273582,8.156,19.125,19.116,6.528]
[1693884274896,8.156,19.125,19.114,55.0]
[1693884275196,8.156,19.125,19.116,6.528]
[1693884278387,26.348,19.128,19.117,55.0]
[1693884278700,8.156,19.125,19.12,6.527]
[1693884278899,8.156,19.125,19.121,55.0]
[1693884279203,26.341,19.134,19.122,27.611]
[1693884279387,8.154,19.131,19.125,6.525]
[1693884279588,8.154,19.131,19.124,6.525]
[1693884281896,8.154,19.131,19.123,6.526]
[1693884282995,27.36,19.13,19.123,6.526]
[1693884283197,27.36,19.13,19.124,55.0]
[1693884283402,27.36,19.13,19.125,6.525]
[1693884283805,35.514,19.13,19.125,6.525]
[1693884285599,27.36,19.13,19.125,6.525]
[1693884285902,26.342,19.133,19.126,55.0]
[1693884285903,8.153,19.133,19.126,55.0]
[1693884286106,8.153,19.133,19.128,6.524]
[1693884287597,8.152,19.135,19.128,6.524]
[1693884287811,8.152,19.135,19.127,21.079]
[1693884287812,8.152,19.135,19.13,6.523]
[1693884288403,8.152,19.135,19.129,6.523]
[1693884288904,8.152,19.135,19.128,6.524]
[1693884289107,8.152,19.135,19.129,55.0]
[1693884289897,8.152,19.135,19.129,61.524]
[1693884290209,8.152,19.135,19.129,55.0]
[1693884292411,8.152,19.135,19.129,61.524]
[1693884292607,8.152,19.135,19.129,55.0]
[1693884293409,8.152,19.135,19.129,61.524]
[1693884295511,8.152,19.135,19.129,55.0]
[1693884295717,8.152,19.135,19.129,61.524]
[1693884296211,47.36,19.14,19.129,61.524]
[1693884296508,47.36,19.14,19.132,6.522]
[1693884296509,8.15,19.139,19.132,6.522]
[1693884297611,8.15,19.139,19.13,6.523]
[1693884297912,8.15,19.139,19.131,75.0]
[1693884298112,8.15,19.139,19.131,81.523]
[1693884299518,8.15,19.139,19.131,20.0]
[1693884300315,8.15,19.139,19.131,6.523]
[1693884301317,35.51,19.14,19.132,55.0]
[1693884301517,35.51,19.14,19.134,6.522]
[1693884302898,27.36,19.14,19.134,27.594]
[1693884303098,27.36,19.14,19.136,6.521]
[1693884303303,8.15,19.141,19.132,122.068]
[1693884303515,35.51,19.14,19.135,6.522]
[1693884303713,8.15,19.14,19.135,6.522]
[1693884305216,8.149,19.142,19.135,6.522]
[1693884310705,8.149,19.142,19.134,6.522]
[1693884310921,27.36,19.14,19.135,55.0]
[1693884311128,8.15,19.14,19.135,55.0]
[1693884311422,8.15,19.14,19.135,61.522]
[1693884313608,213.40159575,19.144,19.135,61.522]
[1693884313808,8.149,19.142,19.135,61.522]
[1693884314106,8.149,19.142,19.135,55.0]
[1693884314316,1.14544139,19.141,19.135,55.0]
[1693884314518,8.15,19.14,19.135,55.0]
[1693884314725,8.15,19.14,19.135,61.522]
[1693884315017,8.15,19.14,19.135,6.522]
[1693884315616,34.2521284,19.14,19.11,27.36]
[1693884315823,27.36,19.13,19.12,21.087]
[1693884316120,35.514,19.13,19.121,3.79399925]
[1693884316324,35.514,19.13,19.122,6.526]
[1693884316523,8.154,19.13,19.123,3.79399925]
[1693884317020,35.514,19.13,19.123,3.79399925]
[1693884317222,35.514,19.13,19.117,3.79399925]
[1693884317421,35.514,19.13,19.112,23.79399925]
[1693884318316,35.514,19.13,19.117,6.528]
[1693884318518,35.514,19.13,19.119,3.79399925]
[1693884319319,92.02,19.126,19.112,6.529]
[1693884319531,92.062,19.118,19.104,6.532]
[1693884319721,1.15061111,19.117,19.102,6.533]
[1693884320024,34.532,19.113,19.103,3.79399925]
[1693884320232,34.532,19.113,19.105,6.532]
[1693884320731,8.162,19.113,19.105,6.532]
[1693884320921,8.162,19.113,19.106,3.79399925]
[1693884321228,8.162,19.113,19.106,10.32499925]
[1693884321528,8.162,19.113,19.106,6.531]
[1693884323126,8.162,19.113,19.106,27.634]
[1693884323316,8.162,19.113,19.107,3.79399925]
[1693884323516,8.162,19.113,19.108,6.531]
[1693884328129,8.162,19.113,19.104,24.89899925]
[1693884328330,8.162,19.113,19.106,3.79399925]
[1693884328714,8.162,19.113,19.106,6.531]
[1693884329144,8.162,19.113,19.107,3.79399925]
[1693884329440,8.161,19.114,19.108,6.531]
[1693884330525,8.161,19.114,19.104,46.062]
[1693884330526,8.161,19.114,19.107,6.531]
[1693884330730,8.161,19.114,19.108,55.0]
[1693884330933,96.6844,19.117,19.108,61.53]
[1693884331125,8.161,19.115,19.109,1.38187154]
[1693884331324,8.161,19.115,19.11,6.53]
[1693884334443,8.16,19.116,19.11,6.53]
[1693884334743,96.6844,19.117,19.11,6.53]
[1693884335236,26.356,19.123,19.11,27.628]
[1693884335444,8.157,19.124,19.114,27.622]
[1693884335629,8.157,19.124,19.117,6.527]
[1693884336027,8.157,19.125,19.117,6.527]
[1693884336440,0.59419626,19.124,19.117,6.527]
[1693884336638,8.75119626,19.124,19.117,6.527]
[1693884336834,8.157,19.124,19.117,6.527]
[1693884337343,0.55956652,19.125,19.117,6.527]
[1693884337541,8.157,19.125,19.119,6.527]
[1693884337926,0.70668578,19.124,19.119,6.527]
[1693884338126,8.154,19.13,19.119,6.527]
[1693884338444,104.9696,19.13,19.123,6.525]
[1693884338645,104.9696,19.13,19.121,24.87999925]
[1693884338646,104.9696,19.13,19.121,6.526]
[1693884338941,104.9696,19.13,19.122,1.83716588]
[1693884339145,104.9696,19.13,19.123,6.525]
[1693884340940,96.8156,19.13,19.123,6.525]
[1693884341246,104.9696,19.13,19.123,6.525]
[1693884341845,241.024,19.14,19.123,6.525]
[1693884341846,8.153,19.134,19.124,2.09128136]
[1693884342024,0.92393644,19.135,19.127,27.603]
[1693884342229,0.94066407,19.141,19.128,3.79399925]
[1693884342540,26.1021284,19.142,19.131,27.598]
[1693884342541,8.15,19.14,19.131,27.598]
[1693884342733,8.15,19.14,19.132,55.0]
[1693884342934,8.15,19.14,19.133,6.522]
[1693884343444,34.482,19.14,19.132,55.0]
[1693884344333,8.15,19.14,19.132,61.522]
[1693884346435,8.15,19.141,19.132,61.522]
[1693884350445,98.4818,19.143,19.132,61.522]
[1693884350752,0.97291657,19.142,19.132,61.522]
[1693884350954,9.12191657,19.142,19.132,6.522]
[1693884351553,9.12191657,19.142,19.13,8.4324667]
[1693884351753,9.12191657,19.142,19.131,20.0]
[1693884352237,9.12191657,19.142,19.131,26.523]
[1693884352942,9.12191657,19.142,19.132,55.0]
[1693884353254,9.12191657,19.142,19.131,26.523]
[1693884353443,9.12191657,19.142,19.132,55.0]
[1693884353642,9.12191657,19.142,19.132,61.522]
[1693884355861,8.149,19.142,19.132,61.522]
[1693884357649,8.148,19.146,19.132,61.522]
[1693884357856,8.148,19.145,19.132,61.522]
[1693884359547,1.13620728,19.144,19.132,61.522]
[1693884359855,8.15,19.141,19.132,61.522]
[1693884360658,8.15,19.141,19.132,6.522]
[1693884361557,8.15,19.141,19.132,27.596]
[1693884362556,8.15,19.141,19.133,55.0]
[1693884362741,8.15,19.141,19.134,6.522]
[1693884365053,8.15,19.141,19.131,20.0]
[1693884365356,8.151,19.138,19.13,18.441]
[1693884365543,8.151,19.138,19.132,5.707]
[1693884366761,8.151,19.138,19.131,60.708]
[1693884367140,8.151,19.138,19.13,5.708]
[1693884367368,8.151,19.138,19.131,20.0]
[1693884367749,8.151,19.138,19.131,25.707]
[1693884368056,8.15,19.139,19.131,25.707]
[1693884370261,0.88392683,19.138,19.131,25.707]
[1693884370459,9.03492683,19.138,19.131,25.707]
[1693884370760,8.151,19.138,19.131,25.707]
[1693884372861,8.151,19.138,19.131,20.0]
[1693884373259,8.151,19.138,19.131,25.707]
[1693884375662,27.41,19.14,19.131,20.0]
[1693884375874,8.151,19.138,19.131,5.707]
[1693884376662,27.41,19.14,19.131,5.707]
[1693884376855,9.30161111,19.139,19.131,24.148]
[1693884377054,8.151,19.139,19.131,24.148]
[1693884379261,8.151,19.139,19.131,5.707]
[1693884381970,95.5071,19.142,19.132,55.0]
[1693884382268,8.15,19.141,19.135,5.706]
[1693884389677,8.15,19.141,19.134,5.706]
[1693884389874,27.34,19.14,19.134,5.706]
[1693884390180,8.15,19.139,19.134,5.706]
[1693884392066,35.49,19.14,19.134,5.706]
[1693884393577,27.34,19.14,19.134,5.706]
[1693884394670,35.49,19.14,19.134,5.706]
[1693884397581,61.822,19.14,19.132,55.0]
[1693884398579,61.822,19.14,19.132,60.707]
[1693884402566,35.49,19.14,19.132,60.707]
[1693884403670,27.34,19.14,19.132,60.707]
[1693884403876,27.34,19.14,19.132,100.953]
[1693884404381,35.49,19.14,19.132,100.953]
[1693884404884,35.49,19.14,19.132,60.707]
[1693884410880,27.34,19.14,19.132,60.707]
[1693884411784,35.49,19.14,19.132,60.707]
[1693884413468,27.34,19.14,19.132,60.707]
[1693884420172,99.4734,19.145,19.132,133.516]
[1693884420375,1.15061111,19.144,19.132,133.516]
[1693884420985,9.29861111,19.144,19.132,133.516]
[1693884421391,27.34,19.14,19.132,60.707]
[1693884422591,8.148,19.144,19.132,60.707]
[1693884422796,0.89430338,19.143,19.132,60.707]
[1693884423798,8.149,19.143,19.132,60.707]
[1693884425793,27.34,19.14,19.132,5.707]
[1693884426088,35.49,19.14,19.132,5.707]
[1693884437802,35.49,19.14,19.129,2.02320294]
[1693884437990,35.49,19.14,19.131,5.707]
[1693884438191,1.05718413,19.139,19.131,5.707]
[1693884438390,8.151,19.137,19.131,5.707]
[1693884442001,8.151,19.137,19.13,5.708]
[1693884442207,8.151,19.137,19.131,23.16179541]
[1693884442400,8.151,19.137,19.131,25.707]
[1693884448211,8.151,19.137,19.115,202.62214251]
[1693884448409,4.31240652,19.136,19.116,75.63220384]
[1693884448709,12.46440652,19.136,19.121,24.16]
[1693884448920,12.46440652,19.136,19.122,55.63220384]
[1693884449110,12.46440652,19.136,19.126,24.154]
[1693884449417,12.46440652,19.136,19.127,55.63220384]
[1693884449604,12.46440652,19.136,19.129,5.708]
[1693884449805,8.152,19.136,19.129,5.708]
[1693884450112,4.31240652,19.135,19.129,5.708]
[1693884450316,4.31240652,19.135,19.13,20.0]
[1693884450517,4.31240652,19.135,19.131,5.707]
[1693884450709,8.152,19.136,19.131,5.707]
[1693884451920,8.151,19.137,19.131,5.707]
[1693884453403,4.31240652,19.137,19.131,5.707]
[1693884453800,4.31240652,19.139,19.131,5.707]
[1693884454221,12.46240652,19.139,19.131,5.707]
[1693884454520,4.31240652,19.139,19.131,5.707]
[1693884454719,12.46240652,19.139,19.131,5.707]
[1693884455219,4.31240652,19.139,19.131,5.707]
[1693884456412,4.31240652,19.139,19.132,55.0]
[1693884456619,4.31240652,19.139,19.134,5.707]
[1693884463029,12.46240652,19.139,19.134,5.707]
[1693884463229,8.151,19.139,19.134,5.707]
[1693884463829,285.49,19.14,19.134,5.707]
[1693884464030,2.27494179,19.139,19.134,5.707]
[1693884467628,277.34,19.14,19.134,5.707]
[1693884467934,285.49,19.14,19.134,5.707]
[1693884470730,1.9990334,19.139,19.134,5.707]
[1693884471539,1.9990334,19.139,19.133,18.438]
[1693884471540,250.0,19.14,19.136,24.142]
[1693884471728,4.31240652,19.147,19.136,24.142]
[1693884471928,250.0,19.14,19.139,5.705]
[1693884472544,251.87911167,19.14,19.139,5.705]
[1693884472727,250.0,19.14,19.139,5.705]
[1693884474642,250.0,19.14,19.137,5.706]
[1693884474831,3.28424118,19.139,19.137,5.706]
[1693884480942,250.0,19.14,19.137,5.706]
[1693884483550,1.84536462,19.139,19.137,5.706]
[1693884484252,250.0,19.14,19.137,5.706]
[1693884485554,1.87212723,19.139,19.137,5.706]
[1693884488540,250.0,19.14,19.137,5.706]
[1693884488739,1.86756701,19.139,19.137,5.706]
[1693884490150,250.0,19.14,19.138,79.139]
[1693884491242,320.46527254,19.146,19.139,20.0]
[1693884491548,320.46527254,19.146,19.141,64.363]
[1693884491750,320.46527254,19.146,19.143,24.133]
[1693884492138,320.46527254,19.146,19.143,5.704]
[1693884493551,320.46527254,19.146,19.145,5.703]
[1693884493755,320.46527254,19.146,19.144,60.704]
[1693884493954,320.46527254,19.146,19.142,5.704]
[1693884494139,2.0083851,19.145,19.142,5.704]
[1693884494857,8.146,19.149,19.142,5.704]
[1693884495057,2.31455845,19.147,19.142,5.704]
[1693884495240,3.35836814,19.148,19.142,5.704]
[1693884497467,11.50536814,19.148,19.142,5.704]
[1693884497958,4.11825027,19.149,19.142,5.704]
[1693884499359,4.11825027,19.149,19.142,4.704]
[1693884499742,4.11825027,19.149,19.144,5.703]
[1693884499943,4.11825027,19.149,19.143,5.704]
[1693884500139,4.11825027,19.149,19.144,5.704]
[1693884501359,4.11825027,19.149,19.143,5.704]
[1693884502564,4.11825027,19.149,19.143,24.133]
[1693884502765,4.11825027,19.149,19.143,5.704]
[1693884503463,12.26425027,19.149,19.139,38.433]
[1693884503662,12.26425027,19.149,19.14,55.0]
[1693884503965,4.11825027,19.149,19.142,5.704]
[1693884504165,4.11825027,19.149,19.143,55.0]
[1693884504763,12.26425027,19.149,19.143,55.0]
[1693884505259,4.11825027,19.149,19.143,55.0]
[1693884505656,4.11825027,19.149,19.143,60.704]
[1693884506768,4.11825027,19.149,19.143,55.0]
[1693884508463,12.26425027,19.149,19.141,20.0]
[1693884508646,12.26425027,19.149,19.134,40.241]
[1693884508647,12.26425027,19.149,19.139,20.0]
[1693884508853,26.1021284,19.148,19.136,20.0]
[1693884509053,8.148,19.145,19.136,20.0]
[1693884509259,4.31240652,19.144,19.137,5.706]
[1693884509861,4.31240652,19.145,19.138,20.0]
[1693884510070,12.46040652,19.145,19.138,25.705]
[1693884510269,12.46040652,19.145,19.139,55.0]
[1693884510474,8.148,19.145,19.14,20.0]
[1693884510865,2.19948016,19.144,19.14,20.0]
[1693884511262,2.67897846,19.145,19.14,20.0]
[1693884512169,2.67897846,19.145,19.141,55.0]
[1693884512475,90.2051,19.148,19.141,60.704]
[1693884512476,2.67897846,19.147,19.141,60.704]
[1693884514575,10.82597846,19.147,19.141,60.704]
[1693884514876,2.67897846,19.147,19.141,60.704]
[1693884516471,3.80122413,19.148,19.141,60.704]
[1693884516674,11.94822413,19.148,19.141,60.704]
[1693884518367,3.80122413,19.148,19.141,60.704]
[1693884519958,3.80122413,19.149,19.141,60.704]
[1693884520360,11.94722413,19.149,19.141,60.704]
[1693884520565,3.80122413,19.149,19.141,60.704]
[1693884520871,3.80122413,19.149,19.141,100.931]
[1693884523877,277.34,19.15,19.141,100.931]
[1693884524069,1.93541797,19.149,19.141,100.931]
[1693884525581,1.93541797,19.149,19.141,60.704]
[1693884529089,250.0,19.15,19.141,60.704]
[1693884529466,250.0,19.15,19.141,133.479]
[1693884529961,91.0934,19.154,19.141,133.479]
[1693884530177,3.07880255,19.153,19.141,133.479]
[1693884530376,250.0,19.15,19.141,133.479]
[1693884531984,250.0,19.15,19.141,60.704]
[1693884532883,250.0,19.15,19.141,101.72749868]
[1693884533186,27.34,19.16,19.141,101.72749868]
[1693884533187,277.34,19.16,19.141,101.72749868]
[1693884533378,277.34,19.16,19.142,20.0]
[1693884533583,1.9420842,19.159,19.147,5.703]
[1693884533786,8.143,19.156,19.148,75.0]
[1693884533972,8.143,19.156,19.148,20.0]
[1693884534489,8.143,19.156,19.147,5.703]
[1693884534687,8.143,19.156,19.148,75.0]
[1693884535294,277.34,19.16,19.148,75.0]
[1693884535505,2.09413706,19.159,19.148,80.702]
[1693884535806,8.142,19.158,19.148,80.702]
[1693884536303,8.142,19.158,19.148,75.0]
[1693884536697,8.142,19.158,19.148,55.0]
[1693884536889,8.142,19.158,19.149,20.0]
[1693884538790,8.142,19.158,19.15,55.0]
[1693884539503,8.142,19.158,19.151,20.0]
[1693884539801,8.142,19.159,19.151,20.0]
[1693884539999,34.448,19.159,19.151,20.0]
[1693884544409,2.17309497,19.158,19.151,20.0]
[1693884544708,8.143,19.156,19.147,20.0]
[1693884544906,8.143,19.156,19.148,55.0]
[1693884545307,8.143,19.156,19.149,20.0]